fUST/lending_fUST_20260118
["ID","MTS","AMOUNT","RATE_DAILY","PERIOD"]
[402522563,1768695050729,-664.33,0.00016712,3]
[402522565,1768695050738,-500.0,0.00016712,3]
[402522567,1768695050748,-500.0,0.00016712,3]
[402522570,1768695050762,-500.0,0.00016712,3]
[402522572,1768695050772,-510.11,0.00016712,3]
[402522574,1768695050782,-500.0,0.00016712,3]
[402522576,1768695050791,-1370.84,0.00016712,3]
[402522578,1768695050800,-529.11,0.00016712,3]
[402522580,1768695050810,-1325.97,0.00016712,3]
[402522582,1768695050820,-500.0,0.00016712,3]
[402522584,1768695050829,-1072.96,0.00016712,3]
[402522586,1768695050838,-500.0,0.00016712,3]
[402522588,1768695050849,-500.0,0.00016712,3]
[402522590,1768695050859,-1395.57,0.00016712,3]
[402522592,1768695050868,-500.0,0.00016712,3]
[402522594,1768695050878,-408.02411447,0.00016712,3]
[402522596,1768695050888,-500.0,0.00016712,3]
[402522598,1768695050898,-500.0,0.00016712,3]
[402522600,1768695050908,-500.0,0.00016712,3]
[402522602,1768695050918,-500.0,0.00016712,3]
[402522604,1768695050928,-898.02,0.00016712,3]
[402522606,1768695050938,-500.0,0.00016712,3]
[402522609,1768695050947,-500.0,0.00016712,3]
[402522611,1768695050960,-554.65,0.00016712,3]
[402522612,1768695050972,-500.0,0.00016712,3]
[402522615,1768695050983,-500.0,0.00016712,3]
[402522617,1768695050994,-500.0,0.00016712,3]
[402522619,1768695051003,-953.85,0.00016712,3]
[402522621,1768695051012,-500.0,0.00016712,3]
[402522623,1768695051021,-500.0,0.00016712,3]
[402522625,1768695051033,-500.0,0.00016712,3]
[402522627,1768695051043,-500.0,0.00016712,3]
[402522629,1768695051052,-500.0,0.00016712,3]
[402522631,1768695051063,-520.7,0.00016712,3]
[402522633,1768695051072,-960.2,0.00016712,3]
[402522635,1768695051082,-500.0,0.00016712,3]
[402522637,1768695051091,-500.0,0.00016712,3]
[402522639,1768695051100,-547.03,0.00016712,3]
[402522641,1768695051109,-500.0,0.00016712,3]
[402522643,1768695051119,-500.0,0.00016712,3]
[402522645,1768695051129,-500.0,0.00016712,3]
[402522647,1768695051138,-623.23,0.00016712,3]
[402522649,1768695051148,-500.0,0.00016712,3]
[402522651,1768695051157,-1013.9,0.00016712,3]
[402522653,1768695051167,-500.0,0.00016712,3]
[402522655,1768695051177,-500.0,0.00016712,3]
[402522657,1768695051186,-500.0,0.00016712,3]
[402522659,1768695051196,-500.0,0.00016712,3]
[402522661,1768695051205,-500.0,0.00016712,3]
[402522663,1768695051215,-500.0,0.00016712,3]
[402522665,1768695051225,-500.0,0.00016712,3]
[402522667,1768695051235,-500.0,0.00016712,3]
[402522669,1768695051244,-648.92,0.00016712,3]
[402522671,1768695051253,-500.0,0.00016712,3]
[402522673,1768695051264,-500.0,0.00016712,3]
[402522675,1768695051273,-556.15,0.00016712,3]
[402522677,1768695051284,-500.0,0.00016712,3]
[402522679,1768695051294,-500.0,0.00016712,3]
[402522681,1768695051303,-500.0,0.00016712,3]
[402522683,1768695051312,-500.0,0.00016712,3]
[402522685,1768695051322,-500.0,0.00016712,3]
[402522687,1768695051331,-561.62,0.00016712,3]
[402522689,1768695051340,-578.73,0.00016712,3]
[402522691,1768695051350,-502.64,0.00016712,3]
[402522693,1768695051359,-500.0,0.00016712,3]
[402522695,1768695051368,-500.0,0.00016712,3]
[402522697,1768695051378,-655.6,0.00016712,3]
[402522699,1768695051389,-500.0,0.00016712,3]
[402522701,1768695051398,-768.15,0.00016712,3]
[402522703,1768695051408,-500.0,0.00016712,3]
[402522705,1768695051418,-602.54532275,0.00016712,3]
[402522707,1768695051427,-581.86,0.00016712,3]
[402522709,1768695051437,-500.0,0.00016712,3]
[402522711,1768695051447,-500.0,0.00016712,3]
[402522713,1768695051457,-1036.49,0.00016712,3]
[402522715,1768695051467,-824.52,0.00016712,3]
[402522717,1768695051477,-500.0,0.00016712,3]
[402522719,1768695051487,-500.0,0.00016712,3]
[402522721,1768695051496,-500.0,0.00016712,3]
[402522723,1768695051505,-1168.21,0.00016712,3]
[402522725,1768695051515,-1214.85,0.00016712,3]
[402522727,1768695051524,-500.0,0.00016712,3]
[402522729,1768695051533,-894.52,0.00016712,3]
[402522731,1768695051542,-500.0,0.00016712,3]
[402522733,1768695051551,-500.0,0.00016712,3]
[402522735,1768695051561,-500.0,0.00016712,3]
[402522738,1768695051571,-1116.93,0.00016712,3]
[402522740,1768695051580,-500.0,0.00016712,3]
[402522742,1768695051594,-590.26232333,0.00016712,3]
[402522744,1768695051604,-833.48,0.00016712,3]
[402522746,1768695051613,-287.651845,0.00016712,2]
[402522748,1768695051623,-500.0,0.00016712,3]
[402522750,1768695051632,-1655.25,0.00016712,3]
[402522752,1768695051642,-287.651845,0.00016712,2]
[402522754,1768695051652,-500.0,0.00016712,3]
[402522756,1768695051661,-287.651845,0.00016712,2]
[402522758,1768695051671,-500.0,0.00016712,3]
[402522760,1768695051681,-500.0,0.00016712,3]
[402522762,1768695051691,-500.0,0.00016712,3]
[402522764,1768695051702,-287.651845,0.00016712,2]
[402522766,1768695051712,-500.0,0.00016712,3]
[402522768,1768695051722,-1010.57,0.00016712,3]
[402522771,1768695051731,-500.0,0.00016712,3]
[402522773,1768695051740,-500.0,0.00016712,3]
[402522775,1768695051750,-500.0,0.00016712,3]
[402522777,1768695051760,-1676.29,0.00016712,3]
[402522779,1768695051770,-500.0,0.00016712,3]
[402522781,1768695051779,-526.13,0.00016712,3]
[402522783,1768695051789,-500.0,0.00016712,3]
[402522785,1768695051799,-611.2,0.00016712,3]
[402522787,1768695051810,-500.0,0.00016712,3]
[402522789,1768695051819,-500.0,0.00016712,3]
[402522791,1768695051829,-308.71120644,0.00016712,3]
[402522793,1768695051839,-647.99,0.00016712,3]
[402522795,1768695051849,-500.0,0.00016712,3]
[402522797,1768695051859,-500.0,0.00016712,3]
[402522799,1768695051869,-500.0,0.00016712,3]
[402522801,1768695051879,-500.0,0.00016712,3]
[402522803,1768695051889,-500.0,0.00016712,3]
[402522805,1768695051898,-500.0,0.00016712,3]
[402522807,1768695051908,-500.0,0.00016712,3]
[402522809,1768695051917,-500.0,0.00016712,3]
[402522811,1768695051927,-611.35197763,0.00016712,3]
[402522813,1768695051937,-500.0,0.00016712,3]
[402522816,1768695051949,-500.0,0.00016712,3]
[402522818,1768695051959,-500.0,0.00016712,3]
[402522820,1768695051969,-1097.01,0.00016712,3]
[402522822,1768695051979,-586.48,0.00016712,3]
[402522824,1768695051995,-500.0,0.00016712,3]
[402522826,1768695052005,-500.0,0.00016712,3]
[402522828,1768695052015,-500.0,0.00016712,3]
[402522830,1768695052027,-500.0,0.00016712,3]
[402522832,1768695052037,-500.0,0.00016712,3]
[402522834,1768695052048,-634.35,0.00016712,3]
[402522836,1768695052060,-734.77,0.00016712,3]
[402522838,1768695052070,-500.0,0.00016712,3]
[402522841,1768695052080,-500.0,0.00016712,3]
[402522843,1768695052091,-858.28,0.00016712,3]
[402522845,1768695052100,-61.55986817,0.00016712,3]
[402522886,1768695052482,-438.44013183,0.00016712,3]
[402522888,1768695052491,-500.0,0.00016712,3]
[402522890,1768695052502,-586.75,0.00016712,3]
[402522892,1768695052512,-500.0,0.00016712,3]
[402522894,1768695052523,-500.0,0.00016712,3]
[402522896,1768695052532,-500.0,0.00016712,3]
[402522898,1768695052542,-324.49870203,0.00016712,3]
[402522901,1768695052554,-9824.02496015,0.00016712,3]
[402522948,1768695053000,-500.0,0.00016438,3]
[402522950,1768695053010,-500.0,0.00016438,3]
[402522952,1768695053020,-500.0,0.00016438,3]
[402522954,1768695053031,-232.57633782,0.00016712,3]
[402522956,1768695053041,-500.0,0.00016712,3]
[402522959,1768695053052,-752.73,0.00016712,3]
[402522961,1768695053063,-500.0,0.00016712,3]
[402522963,1768695053074,-500.0,0.00016712,3]
[402522965,1768695053084,-500.0,0.00016712,3]
[402522967,1768695053094,-536.65897098,0.00016712,3]
[402522975,1768695053335,-379.25255787,0.00016712,3]
[402522976,1768695053351,-1168.84,0.00016712,3]
[402522977,1768695053361,-911.42,0.00016712,3]
[402522978,1768695053370,-686.65,0.00016712,3]
[402522979,1768695053380,-206.13170951,0.00016712,3]
[402522980,1768695053390,-500.0,0.00016712,3]
[402522981,1768695053399,-500.0,0.00016712,3]
[402522982,1768695053409,-244.26437665,0.00016712,3]
[402522983,1768695053418,-836.94,0.00016712,3]
[402522984,1768695053428,-500.0,0.00016712,3]
[402522985,1768695053438,-614.01,0.00016712,3]
[402522986,1768695053448,-1416.41,0.00016712,3]
[402522987,1768695053458,-959.09,0.00016712,3]
[402522988,1768695053468,-936.37,0.00016712,3]
[402522989,1768695053477,-500.0,0.00016712,3]
[402522990,1768695053487,-253.82902155,0.00016712,3]
[402522991,1768695053497,-500.0,0.00016712,3]
[402522992,1768695053507,-500.0,0.00016712,3]
[402522993,1768695053516,-953.25120035,0.00016712,2]
[402522994,1768695053526,-940.67,0.00016712,3]
[402522995,1768695053535,-2434.45,0.00016712,3]
[402522996,1768695053546,-500.0,0.00016712,3]
[402522997,1768695053556,-1554.66,0.00016712,3]
[402522998,1768695053566,-2111.3,0.00016712,3]
[402522999,1768695053576,-718.43,0.00016712,3]
[402523000,1768695053585,-500.0,0.00016712,3]
[402523001,1768695053595,-500.0,0.00016712,3]
[402523002,1768695053605,-500.0,0.00016712,3]
[402523003,1768695053614,-752.14,0.00016712,3]
[402523004,1768695053624,-545.24616728,0.00016712,3]
[402523005,1768695053633,-224.22753916,0.00016712,3]
[402523006,1768695053644,-500.0,0.00016712,3]
[402523007,1768695053654,-500.0,0.00016712,3]
[402523008,1768695053663,-500.0,0.00016712,3]
[402523009,1768695053673,-500.0,0.00016712,3]
[402523010,1768695053683,-500.0,0.00016712,3]
[402523011,1768695053693,-500.0,0.00016712,3]
[402523012,1768695053703,-500.0,0.00016712,3]
[402523013,1768695053714,-628.47,0.00016712,3]
[402523014,1768695053724,-1073.42,0.00016712,3]
[402523015,1768695053733,-500.0,0.00016712,3]
[402523016,1768695053743,-500.0,0.00016712,3]
[402523017,1768695053753,-827.48,0.00016712,3]
[402523018,1768695053763,-500.0,0.00016712,3]
[402523019,1768695053772,-500.0,0.00016712,3]
[402523020,1768695053781,-500.0,0.00016712,3]
[402523021,1768695053791,-633.96,0.00016712,3]
[402523022,1768695053801,-850.2,0.00016712,3]
[402523023,1768695053811,-500.0,0.00016712,3]
[402523024,1768695053821,-500.0,0.00016712,3]
[402523025,1768695053831,-500.0,0.00016712,3]
[402523026,1768695053840,-500.0,0.00016712,3]
[402523027,1768695053850,-500.0,0.00016712,3]
[402523028,1768695053860,-500.0,0.00016712,3]
[402523029,1768695053870,-1020.85,0.00016712,3]
[402523030,1768695053879,-500.0,0.00016712,3]
[402523031,1768695053889,-852.94,0.00016712,3]
[402523032,1768695053899,-500.0,0.00016712,3]
[402523033,1768695053908,-500.0,0.00016712,3]
[402523034,1768695053919,-665.3,0.00016712,3]
[402523035,1768695053929,-500.0,0.00016712,3]
[402523036,1768695053938,-1276.22,0.00016712,3]
[402523037,1768695053948,-500.0,0.00016712,3]
[402523038,1768695053957,-500.0,0.00016712,3]
[402523039,1768695053967,-584.86,0.00016712,3]
[402523040,1768695053977,-500.0,0.00016712,3]
[402523041,1768695053989,-500.0,0.00016712,3]
[402523042,1768695053999,-500.0,0.00016712,3]
[402523043,1768695054009,-500.0,0.00016712,3]
[402523044,1768695054020,-888.49,0.00016712,3]
[402523045,1768695054031,-500.0,0.00016712,3]
[402523046,1768695054040,-500.0,0.00016712,3]
[402523047,1768695054050,-500.0,0.00016712,3]
[402523048,1768695054065,-500.0,0.00016712,3]
[402523049,1768695054074,-500.0,0.00016712,3]
[402523050,1768695054084,-500.0,0.00016712,3]
[402523051,1768695054093,-755.39,0.00016712,3]
[402523052,1768695054103,-500.0,0.00016712,3]
[402523053,1768695054113,-500.0,0.00016712,3]
[402523054,1768695054123,-538.44,0.00016712,3]
[402523055,1768695054133,-500.0,0.00016712,3]
[402523056,1768695054143,-500.0,0.00016712,3]
[402523057,1768695054153,-1007.75,0.00016712,3]
[402523058,1768695054162,-500.0,0.00016712,3]
[402523059,1768695054172,-1576.41,0.00016712,3]
[402523060,1768695054182,-500.0,0.00016712,3]
[402523061,1768695054192,-500.0,0.00016712,3]
[402523062,1768695054201,-500.0,0.00016712,3]
[402523063,1768695054211,-1036.77,0.00016712,3]
[402523064,1768695054220,-9.1774886,0.00016712,3]
[402523065,1768695054234,-611.1825114,0.00016712,3]
[402523066,1768695054243,-411.61899151,0.00016712,3]
[402523067,1768695054254,-88.38100849,0.00016712,3]
[402523068,1768695054264,-364.61899151,0.00016712,3]
[402523069,1768695054275,-135.38100849,0.00016712,3]
[402523070,1768695054284,-905.84,0.00016712,3]
[402523071,1768695054293,-500.0,0.00016712,3]
[402523072,1768695054304,-500.0,0.00016712,3]
[402523073,1768695054313,-927.31,0.00016712,3]
[402523074,1768695054323,-911.94,0.00016712,3]
[402523075,1768695054333,-1203.88,0.00016712,3]
[402523076,1768695054342,-500.0,0.00016712,3]
[402523077,1768695054351,-401.79269588,0.00016712,3]
[402523078,1768695054723,-500.0,0.00016438,3]
[402523079,1768695054733,-1200.0,0.00016438,2]
[402523080,1768695054743,-500.0,0.00016438,3]
[402523081,1768695054752,-500.0,0.00016438,3]
[402523082,1768695054762,-98.20730412,0.00016712,3]
[402523083,1768695054772,-500.0,0.00016712,3]
[402523084,1768695054781,-500.0,0.00016712,3]
[402523085,1768695054790,-551.81,0.00016712,3]
[402523086,1768695054799,-500.0,0.00016712,3]
[402523087,1768695054809,-571.42,0.00016712,3]
[402523088,1768695054819,-500.0,0.00016712,3]
[402523089,1768695054829,-1013.32,0.00016712,3]
[402523090,1768695054839,-500.0,0.00016712,3]
[402523091,1768695054848,-500.0,0.00016712,3]
[402523092,1768695054858,-2222.48,0.00016712,3]
[402523093,1768695054867,-500.0,0.00016712,3]
[402523094,1768695054877,-500.0,0.00016712,3]
[402523095,1768695054887,-500.0,0.00016712,3]
[402523096,1768695054897,-83.00391664,0.00016712,3]
[402523097,1768695054909,-416.99608336,0.00016712,3]
[402523098,1768695054918,-500.0,0.00016712,3]
[402523099,1768695054928,-678.68,0.00016712,3]
[402523100,1768695054938,-500.0,0.00016712,3]
[402523101,1768695054948,-500.0,0.00016712,3]
[402523102,1768695054958,-500.0,0.00016712,3]
[402523103,1768695054968,-500.0,0.00016712,3]
[402523104,1768695054977,-500.0,0.00016712,3]
[402523105,1768695054989,-500.0,0.00016712,3]
[402523106,1768695054998,-500.0,0.00016712,3]
[402523107,1768695055008,-668.69,0.00016712,3]
[402523108,1768695055018,-500.0,0.00016712,3]
[402523109,1768695055029,-500.0,0.00016712,3]
[402523110,1768695055039,-500.0,0.00016712,3]
[402523111,1768695055049,-687.772574,0.00016712,2]
[402523112,1768695055059,-500.0,0.00016712,3]
[402523113,1768695055068,-938.65,0.00016712,3]
[402523114,1768695055078,-500.0,0.00016712,3]
[402523115,1768695055088,-687.772574,0.00016712,2]
[402523116,1768695055098,-500.0,0.00016712,3]
[402523117,1768695055107,-541.87987257,0.00016712,3]
[402523118,1768695055116,-1068.22,0.00016712,3]
[402523119,1768695055127,-687.772574,0.00016712,2]
[402523120,1768695055136,-5838.81,0.00016712,3]
[402523121,1768695055146,-687.772574,0.00016712,2]
[402523122,1768695055156,-500.0,0.00016712,3]
[402523123,1768695055165,-1177.19,0.00016712,3]
[402523124,1768695055175,-500.0,0.00016712,3]
[402523125,1768695055185,-504.62487329,0.00016712,3]
[402523126,1768695055194,-500.0,0.00016712,2]
[402523127,1768695055204,-500.0,0.00016712,3]
[402523128,1768695055214,-656.71,0.00016712,3]
[402523129,1768695055225,-500.0,0.00016712,3]
[402523130,1768695055235,-531.66,0.00016712,3]
[402523131,1768695055245,-77.11706591,0.00016712,3]
[402523132,1768695055292,-473.76505524,0.00016712,3]
[402523133,1768695055530,-500.0,0.00016438,3]
[402523134,1768695055540,-500.0,0.00016438,3]
[402523135,1768695055550,-500.0,0.00016438,3]
[402523136,1768695055559,-500.0,0.00016438,3]
[402523138,1768695055570,-500.0,0.00016438,3]
[402523140,1768695055580,-500.0,0.00016438,3]
[402523142,1768695055589,-774.67787885,0.00016712,3]
[402523144,1768695055599,-500.0,0.00016712,3]
[402523146,1768695055609,-675.17,0.00016712,3]
[402523147,1768695055619,-500.0,0.00016712,3]
[402523148,1768695055629,-362.07393629,0.00016712,3]
[402523149,1768695055641,-280.70606371,0.00016712,3]
[402523150,1768695055702,-280.2939363,0.00016712,2]
[402523151,1768695055714,-219.7060637,0.00016712,2]
[402523152,1768695055725,-687.51357882,0.00016712,3]
[402523153,1768695055737,-31.32642118,0.00016712,3]
[402523154,1768695055748,-712.39,0.00016712,3]
[402523155,1768695055757,-35.06271038,0.00016712,3]
[402523178,1768695056764,500.0,0.00027397,120]
[402523202,1768695185241,-455.34058336,0.0001284,2]
[402523203,1768695201631,168.47509372,0.0002397,120]
[402523204,1768695313409,1444.0,0.00026137,120]
[402523205,1768695331912,200.0,0.00026219,120]
[402523206,1768695656702,-196.90046227,0.00013086,2]
[402523207,1768695656734,-1200.0,0.00013271,2]
[402523208,1768695656764,-650.0,0.00013272,2]
[402523209,1768695656798,-500.0,0.00013272,2]
[402523210,1768695656827,-500.0,0.00013272,2]
[402523211,1768695656861,-500.0,0.00013272,2]
[402523212,1768695656893,-500.0,0.00013272,2]
[402523213,1768695656926,-500.0,0.00013272,2]
[402523214,1768695656959,-406.20907546,0.00013272,2]
[402523215,1768695659470,-93.79092454,0.00013272,2]
[402523216,1768695659504,-205.37856782,0.00013272,2]
[402523217,1768695659539,-500.0,0.00013272,2]
[402523218,1768695659571,-300.0,0.00013272,2]
[402523219,1768695659910,-300.0,0.00013272,2]
[402523220,1768695659941,-300.0,0.00013272,2]
[402523221,1768695659970,-500.0,0.00013273,2]
[402523222,1768695660000,-500.0,0.00013273,2]
[402523223,1768695660032,-500.0,0.00013273,2]
[402523224,1768695660064,-500.0,0.00013273,2]
[402523225,1768695660096,-500.0,0.00013273,2]
[402523226,1768695660128,-500.0,0.00013273,2]
[402523227,1768695660160,-101.67101528,0.00013273,2]
[402523228,1768695662419,-398.32898472,0.00013273,2]
[402523229,1768695662449,-365.75212924,0.00013273,2]
[402523230,1768695662478,-500.0,0.00013273,2]
[402523231,1768695662507,-500.0,0.00013273,2]
[402523232,1768695665378,-196.90046227,0.00013272,2]
[402523233,1768695665407,-300.0,0.00013272,2]
[402523234,1768695665630,-682.1348923,0.00013273,2]
[402523235,1768695668438,-10000.01,0.00013273,2]
[402523236,1768695691401,200.0,0.00026804,120]
[402523237,1768695704058,484.7945,0.00027397,120]
[402523238,1768695726268,212.53,0.00010806,2]
[402523239,1768695727240,283.37,0.00011637,2]
[402523240,1768695727663,354.21,0.00012468,2]
[402523241,1768695750702,1665.5,0.00027397,120]
[402523242,1768695803589,224.78,0.00010771,2]
[402523243,1768695804124,299.7,0.00011599,2]
[402523244,1768695804562,374.63,0.00012428,2]
[402523245,1768695872108,200.0,0.00024514,120]
[402523246,1768695879826,216.27,0.00010861,2]
[402523247,1768695880271,288.35,0.00011696,2]
[402523248,1768695881187,360.44,0.00012531,2]
[402523250,1768695959206,207.76,0.00010783,2]
[402523251,1768695959638,277.02,0.00011613,2]
[402523252,1768695960275,346.27,0.00012442,2]
[402523253,1768695977061,1000.9,0.00027,120]
[402523255,1768696000968,1651.9,0.00027,120]
[402523256,1768696035326,215.01,0.00010891,2]
[402523257,1768696035742,286.68,0.00011729,2]
[402523258,1768696036295,358.35,0.00012567,2]
[402523261,1768696095999,1444.0,0.00026137,120]
[402523262,1768696110710,201.29,0.00012018,2]
[402523265,1768696148719,300.0,0.0001231,2]
[402523266,1768696185716,212.48,0.00010966,2]
[402523267,1768696186126,283.31,0.0001181,2]
[402523268,1768696186526,354.14,0.00012653,2]
[402523269,1768696228300,229.75666,0.00027,120]
[402523306,1768696232289,-189.012,0.00013228,2]
[402523307,1768696232302,-189.02444378,0.0001325,2]
[402523308,1768696232311,-300.0,0.00013272,2]
[402523309,1768696232322,-300.0,0.00013272,2]
[402523310,1768696232332,-1200.0,0.00013272,2]
[402523311,1768696232341,-500.0,0.00013273,2]
[402523312,1768696232351,-220.03112581,0.00013273,2]
[402523313,1768696232363,-279.96887419,0.00013273,2]
[402523314,1768696232372,-435.2454779,0.00013273,2]
[402523315,1768696232386,-500.0,0.00013273,2]
[402523316,1768696232395,-500.0,0.00013273,2]
[402523317,1768696232404,-183.39429922,0.00013273,2]
[402523318,1768696232413,-2097.10974806,0.000133,2]
[402523319,1768696232423,-1402.05865403,0.00013304,2]
[402523320,1768696232432,-356.1531742,0.00013392,2]
[402523321,1768696232441,-500.0,0.00013392,2]
[402523322,1768696232451,-500.0,0.00013392,2]
[402523323,1768696232461,-500.0,0.00013392,2]
[402523324,1768696232471,-500.0,0.00013392,2]
[402523325,1768696232480,-500.0,0.00013392,2]
[402523326,1768696232492,-500.0,0.00013392,2]
[402523327,1768696232501,-500.0,0.00013392,2]
[402523328,1768696232511,-500.0,0.00013392,2]
[402523329,1768696232521,-500.0,0.00013392,2]
[402523330,1768696232530,-500.0,0.00013392,2]
[402523331,1768696232540,-500.0,0.00013392,2]
[402523332,1768696232550,-500.0,0.00013392,2]
[402523333,1768696232559,-500.0,0.00013392,2]
[402523334,1768696232572,-500.0,0.00013392,2]
[402523335,1768696232582,-500.0,0.00013392,2]
[402523336,1768696232591,-500.0,0.00013392,2]
[402523337,1768696232601,-500.0,0.00013392,2]
[402523338,1768696232610,-500.0,0.00013392,2]
[402523339,1768696232620,-500.0,0.00013392,2]
[402523340,1768696232629,-500.0,0.00013392,2]
[402523341,1768696232639,-500.0,0.00013392,2]
[402523342,1768696232649,-177.9970378,0.00013392,2]
[402523343,1768696232658,-500.0,0.00013392,2]
[402523344,1768696232667,-500.0,0.00013392,2]
[402523345,1768696232676,-198.14529931,0.00013392,2]
[402523346,1768696232686,-500.0,0.00013392,2]
[402523347,1768696232696,-500.0,0.00013392,2]
[402523348,1768696232707,-500.0,0.00013392,2]
[402523349,1768696232717,-500.0,0.00013392,2]
[402523350,1768696232727,-559.43756662,0.00013392,2]
[402523351,1768696232736,-500.0,0.00013392,2]
[402523352,1768696232746,-500.0,0.00013392,2]
[402523353,1768696232755,-500.0,0.00013392,2]
[402523354,1768696232765,-500.0,0.00013392,2]
[402523355,1768696232775,-500.0,0.00013392,2]
[402523356,1768696232784,-500.0,0.00013392,2]
[402523357,1768696232794,-500.0,0.00013392,2]
[402523358,1768696232803,-500.0,0.00013392,2]
[402523359,1768696232813,-500.0,0.00013392,2]
[402523360,1768696232822,-500.0,0.00013392,2]
[402523361,1768696232832,-500.0,0.00013392,2]
[402523362,1768696232841,-470.1763308,0.00013392,2]
[402523363,1768696232851,-500.0,0.00013392,2]
[402523364,1768696232860,-500.0,0.00013392,2]
[402523365,1768696232870,-500.0,0.00013392,2]
[402523366,1768696232881,-500.0,0.00013392,2]
[402523367,1768696232890,-500.0,0.00013392,2]
[402523368,1768696232900,-500.0,0.00013392,2]
[402523369,1768696232911,-500.0,0.00013392,2]
[402523370,1768696232921,-500.0,0.00013392,2]
[402523371,1768696232931,-500.0,0.00013392,2]
[402523372,1768696232940,-500.0,0.00013392,2]
[402523373,1768696232950,-500.0,0.00013392,2]
[402523374,1768696232959,-500.0,0.00013392,2]
[402523375,1768696232968,-500.0,0.00013392,2]
[402523376,1768696232977,-500.0,0.00013392,2]
[402523377,1768696232987,-500.0,0.00013392,2]
[402523378,1768696232997,-500.0,0.00013392,2]
[402523379,1768696233007,-500.0,0.00013392,2]
[402523380,1768696233017,-500.0,0.00013392,2]
[402523381,1768696233026,-500.0,0.00013392,2]
[402523382,1768696233036,-500.0,0.00013392,2]
[402523383,1768696233047,-500.0,0.00013392,2]
[402523384,1768696233056,-500.0,0.00013392,2]
[402523385,1768696233067,-500.0,0.00013392,2]
[402523386,1768696233077,-500.0,0.00013392,2]
[402523387,1768696233086,-500.0,0.00013392,2]
[402523388,1768696233096,-500.0,0.00013392,2]
[402523389,1768696233105,-500.0,0.00013392,2]
[402523390,1768696233115,-500.0,0.00013392,2]
[402523391,1768696233124,-500.0,0.00013392,2]
[402523392,1768696233134,-250.0,0.00013392,2]
[402523393,1768696233144,-500.0,0.00013392,2]
[402523394,1768696233154,-500.0,0.00013392,2]
[402523395,1768696233164,-500.0,0.00013392,2]
[402523396,1768696233174,-500.0,0.00013392,2]
[402523397,1768696233184,-500.0,0.00013392,2]
[402523398,1768696233194,-500.0,0.00013392,2]
[402523399,1768696233204,-500.0,0.00013392,2]
[402523400,1768696233214,-500.0,0.00013392,2]
[402523401,1768696233224,-500.0,0.00013392,2]
[402523402,1768696233234,-500.0,0.00013392,2]
[402523403,1768696233243,-200.0,0.00013392,2]
[402523404,1768696233253,-500.0,0.00013392,2]
[402523405,1768696233263,-500.0,0.00013392,2]
[402523406,1768696233272,-500.0,0.00013392,2]
[402523407,1768696233282,-500.0,0.00013392,2]
[402523408,1768696233291,-500.0,0.00013392,2]
[402523409,1768696233300,-500.0,0.00013392,2]